bitfinex/quotes_SOLUSD_20251201
["timestamp","ask_amount","ask_price","bid_price","bid_amount"]
[1764585684545,0.14216157,127.5,127.48,0.7]
[1764585684747,0.14216157,127.5,127.48,5.14044432]
[1764585684937,0.53,127.53,127.49,12.983772]
[1764585685132,3.46,127.52,127.49,12.983772]
[1764585685350,0.14216157,127.51,127.5,0.7]
[1764585685543,0.14216157,127.51,127.5,5.14044432]
[1764585685736,3.46,127.52,127.5,5.14044432]
[1764585686133,0.14216157,127.51,127.5,0.7]
[1764585687134,0.14216157,127.51,127.5,8.54313725]
[1764585688264,0.14216157,127.52,127.5,8.54313725]
[1764585688760,0.67216157,127.52,127.5,7.84313725]
[1764585688961,0.14216157,127.52,127.51,0.71]
[1764585690160,0.14216157,127.53,127.51,8.55252215]
[1764585693470,0.14216157,127.53,127.52,0.71]
[1764585696171,0.14216157,127.53,127.52,8.55190715]
[1764585699357,0.14216157,127.53,127.52,0.71]
[1764585699568,0.14216157,127.53,127.51,8.55220336]
[1764585700781,0.14216157,127.51,127.49,8.55318634]
[1764585702077,0.67216157,127.51,127.48,8.55436774]
[1764585702380,0.67216157,127.51,127.47,24.05270358]
[1764585702381,0.14216157,127.49,127.47,8.55495236]
[1764585702882,0.14216157,127.49,127.48,5.15044432]
[1764585704274,0.14216157,127.49,127.48,12.99481206]
[1764585704667,0.14216157,127.51,127.48,12.99481206]
[1764585704867,0.14216157,127.51,127.49,5.15044432]
[1764585705974,0.14216157,127.51,127.5,8.55313725]
[1764585709889,0.14216157,127.52,127.5,8.55313725]
[1764585710090,0.14216157,127.52,127.51,0.71]
[1764585712205,0.14216157,127.54,127.51,12.99296647]
[1764585712389,8.95210649,127.54,127.51,12.99296647]
[1764585712583,8.95210649,127.54,127.52,0.71]
[1764585713265,9.48210649,127.54,127.51,8.55252215]
[1764585714479,8.95210649,127.54,127.52,0.71]
[1764585715394,8.95210649,127.54,127.52,8.55174638]
[1764585716600,0.14216157,127.54,127.52,8.55174638]
[1764585717096,159.12318727,127.57,127.53,0.68]
[1764585717278,0.31324235,127.57,127.54,4.44044432]
[1764585717477,0.31324235,127.57,127.54,12.28095433]
[1764585717680,0.45540392,127.57,127.55,0.68]
[1764585718393,8.88584824,127.57,127.54,7.84051001]
[1764585718796,4.44540392,127.57,127.54,8.52051001]
[1764585718980,3.91540392,127.57,127.55,0.68]
[1764585719502,3.91540392,127.57,127.55,8.5199273]
[1764585720808,0.1,127.57,127.56,0.68]
[1764585721311,0.24216157,127.57,127.56,0.68]
[1764585721681,0.24216157,127.57,127.56,8.5194481]
[1764585724479,0.1,127.57,127.56,8.5194481]
[1764585724685,0.1,127.57,127.56,7.8394481]
[1764585725797,0.1,127.57,127.56,8.5194481]
[1764585727311,8.80994492,127.62,127.56,36.99895699]
[1764585729593,0.14216157,127.59,127.57,32.55431053]
[1764585731743,0.14216157,127.59,127.57,7.83828213]
[1764585732041,0.77216157,127.59,127.57,7.83828213]
[1764585732235,0.14216157,127.59,127.57,7.83828213]
[1764585732534,0.14216157,127.59,127.57,8.51828213]
[1764585733922,5.21260589,127.59,127.57,7.83828213]
[1764585734326,3.60844272,127.59,127.57,7.83828213]
[1764585734531,0.77216157,127.59,127.57,7.83828213]
[1764585735337,3.60844272,127.59,127.57,7.83828213]
[1764585737044,0.77216157,127.59,127.57,7.83828213]
[1764585737545,3.60844272,127.59,127.56,0.68]
[1764585737751,3.60844272,127.59,127.56,8.51943567]
[1764585737959,0.14216157,127.57,127.56,8.51943567]
[1764585739830,0.14216157,127.58,127.56,8.51943567]
[1764585740036,0.14216157,127.58,127.57,0.68]
[1764585741359,0.14216157,127.58,127.57,8.51883358]
[1764585742156,0.14216157,127.59,127.57,8.51883358]
[1764585742361,0.14216157,127.59,127.58,0.68]
[1764585742532,0.14216157,127.59,127.57,7.83883358]
[1764585742734,0.14216157,127.59,127.57,8.51883358]
[1764585743153,3.60844272,127.59,127.56,8.5191512]
[1764585747775,0.14216157,127.57,127.56,8.5191512]
[1764585751774,0.14216157,127.57,127.54,22.43698946]
[1764585751775,3.60844272,127.57,127.54,0.68]
[1764585752078,3.60844272,127.57,127.53,8.52129224]
[1764585752079,0.14216157,127.55,127.53,8.52129224]
[1764585755458,0.14216157,127.55,127.53,7.84129224]
[1764585755652,0.14216157,127.55,127.54,0.68]
[1764585757770,0.14216157,127.55,127.53,7.84129224]
[1764585757973,0.14216157,127.55,127.53,8.52129224]
[1764585768612,3.60216157,127.55,127.53,8.52129224]
[1764585774512,3.60216157,127.55,127.54,0.68]
[1764585775508,3.60216157,127.55,127.52,27.446322]
[1764585775704,3.60216157,127.55,127.53,0.68]
[1764585777809,3.60216157,127.55,127.53,8.52115126]
[1764585778016,3.60216157,127.55,127.53,0.68]
[1764585778189,6.43844272,127.55,127.53,0.68]
[1764585779495,6.43844272,127.55,127.53,8.52125719]
[1764585779697,2.97844272,127.55,127.53,8.52125719]
[1764585780009,6.41844272,127.55,127.53,8.52125719]
[1764585780313,6.41844272,127.55,127.51,19.6059545]
[1764585780519,0.14216157,127.51,127.5,8.53313725]
[1764585786022,0.14216157,127.53,127.5,30.97726153]
[1764585786216,51.36,127.54,127.51,3.52628115]
[1764585786419,0.14216157,127.53,127.51,3.52628115]
[1764585786727,0.14216157,127.53,127.52,0.69]
[1764585787128,0.14216157,127.53,127.52,8.53190715]
[1764585789327,0.14216157,127.53,127.5,27.45098038]
[1764585789628,3.60844272,127.53,127.5,28.14098038]
[1764585789814,3.60844272,127.53,127.5,27.45098038]
[1764585790008,2.97844272,127.53,127.51,0.69]
[1764585790525,2.97844272,127.53,127.51,8.53243742]
[1764585790727,2.97844272,127.53,127.52,0.69]
[1764585793432,0.14216157,127.53,127.52,0.69]
[1764585794037,0.14216157,127.53,127.5,27.45098038]
[1764585794239,0.14216157,127.53,127.51,0.69]
[1764585794733,0.14216157,127.51,127.5,7.84313725]
[1764585795034,0.14216157,127.51,127.5,8.53313725]
[1764585796930,0.14216157,127.52,127.5,8.53313725]
[1764585797743,0.14216157,127.52,127.51,0.69]
[1764585798541,52.96570013,127.54,127.51,0.69]
[1764585798743,56.42570013,127.54,127.51,0.69]
[1764585799046,56.42570013,127.54,127.51,8.53244922]
[1764585799523,55.79570013,127.54,127.52,0.69]
[1764585802144,4.5778617,127.53,127.5,8.53313725]
[1764585802348,5.2078617,127.53,127.5,7.84313725]
[1764585802645,4.5778617,127.52,127.5,8.53313725]
[1764585804245,0.14216157,127.52,127.5,8.53313725]
[1764585806753,0.77216157,127.52,127.5,7.84313725]
[1764585807854,5.2078617,127.52,127.5,7.84313725]
[1764585809455,4.5778617,127.52,127.5,8.53313725]
[1764585810849,0.14216157,127.52,127.5,8.53313725]
[1764585817464,4.5778617,127.52,127.49,19.60901841]
[1764585817644,0.14216157,127.51,127.49,20.32901841]
[1764585818962,0.14216157,127.51,127.5,0.72]
[1764585819157,17.47780662,127.51,127.47,3.46]
[1764585819459,0.14216157,127.48,127.47,0.72]
[1764585819844,0.14216157,127.48,127.46,8.56546268]
[1764585823867,5.2078617,127.48,127.46,7.84546268]
[1764585824168,5.2078617,127.48,127.46,8.56546268]
[1764585824359,4.5778617,127.48,127.46,8.56546268]
[1764585826868,0.14216157,127.48,127.46,8.56546268]
[1764585827069,4.5778617,127.48,127.46,8.56546268]
[1764585828571,5.2078617,127.48,127.45,0.72]
[1764585829079,0.14216157,127.48,127.45,0.72]
[1764585829369,24.69220609,127.48,127.45,0.72]
[1764585829950,0.14216157,127.45,127.44,7.84682988]
[1764585830272,0.14216157,127.45,127.44,0.72]
[1764585830770,14.01780662,127.45,127.43,0.2]
[1764585830960,8.0378617,127.44,127.43,0.2]
[1764585831155,4.23216157,127.44,127.43,0.2]
[1764585831360,3.60216157,127.44,127.43,0.2]
[1764585833074,3.60216157,127.44,127.43,0.92]
[1764585835173,3.60216157,127.44,127.43,8.76744565]
[1764585835378,0.14216157,127.44,127.43,8.76744565]
[1764585835573,8.80994492,127.47,127.43,8.76744565]
[1764585835781,8.80994492,127.47,127.44,0.72]
[1764585835961,24.20456413,127.48,127.44,0.72]
[1764585836153,0.14216157,127.47,127.44,0.72]
[1764585837381,0.14216157,127.47,127.45,7.8462142]
[1764585837775,0.14216157,127.47,127.46,0.72]
[1764585838081,16.308864,127.48,127.46,0.72]
[1764585838279,0.14216157,127.47,127.46,0.72]
[1764585840483,5.2078617,127.47,127.45,7.8462142]
[1764585840677,16.51308932,127.47,127.44,8.56682988]
[1764585841485,15.88308932,127.47,127.45,0.72]
[1764585842364,3.60216157,127.47,127.45,0.72]
[1764585842563,3.60216157,127.47,127.45,8.56616458]
[1764585842880,0.14216157,127.47,127.45,8.56616458]
[1764585843066,24.20456413,127.48,127.45,8.56616458]
[1764585843264,0.14216157,127.47,127.45,8.56616458]
[1764585843683,0.14216157,127.47,127.46,0.72]
[1764585844483,14.01780662,127.47,127.44,8.56682988]
[1764585845289,21.86300985,127.47,127.44,8.56682988]
[1764585847183,0.14216157,127.45,127.44,8.56682988]
[1764585849181,0.14216157,127.45,127.44,0.72]
[1764585849982,0.14216157,127.45,127.44,7.84682988]
[1764585850195,0.14216157,127.45,127.43,8.04713449]
[1764585850409,0.14216157,127.45,127.43,8.76713449]
[1764585850577,0.14216157,127.46,127.44,0.72]
[1764585851198,0.14216157,127.46,127.44,8.56672241]
[1764585853900,13.05351896,127.46,127.43,0.2]
[1764585854203,13.05351896,127.46,127.43,0.92]
[1764585854385,13.05351896,127.46,127.43,8.76739579]
[1764585854893,3.60216157,127.46,127.44,0.72]
[1764585855293,3.60216157,127.46,127.44,8.56644896]
[1764585855493,3.60216157,127.46,127.45,0.72]
[1764585855694,3.60216157,127.46,127.44,7.84644896]
[1764585855894,3.60216157,127.46,127.44,8.56644896]
[1764585856094,3.60216157,127.46,127.45,0.72]
[1764585856399,0.14216157,127.46,127.45,0.72]
[1764585857492,0.14216157,127.46,127.45,8.5662142]
[1764585859199,47.04216157,127.47,127.46,0.72]
[1764585859583,47.04216157,127.47,127.46,8.56559861]
[1764585859905,16.308864,127.48,127.46,8.56559861]
[1764585861082,0.14216157,127.47,127.46,8.56559861]
[1764585866014,0.14216157,127.48,127.46,8.56559861]
[1764585868511,0.14216157,127.48,127.47,0.66]
[1764585868812,0.14216157,127.48,127.46,7.84559861]
[1764585869017,0.14216157,127.48,127.46,8.50559861]
[1764585869518,0.77216157,127.48,127.46,7.84559861]
[1764585869723,0.14216157,127.46,127.45,0.66]
[1764585870300,0.14216157,127.46,127.45,8.5062142]
[1764585870717,10.82968903,127.46,127.43,0.86]
[1764585870899,0.14216157,127.44,127.43,0.86]
[1764585871621,0.14216157,127.44,127.43,8.70744565]
[1764585874728,0.14216157,127.44,127.43,8.04744565]
[1764585875025,0.14216157,127.44,127.43,8.70744565]
[1764585875228,0.14216157,127.44,127.43,0.2]
[1764585882240,0.14216157,127.44,127.43,0.86]
[1764585883538,0.14216157,127.45,127.43,8.70744565]
[1764585883736,0.14216157,127.45,127.44,0.66]
[1764585885642,0.14216157,127.45,127.44,8.50682988]
[1764585890847,0.14216157,127.45,127.43,8.0471636]
[1764585891024,0.14216157,127.45,127.43,8.7071636]
[1764585891344,2.98381895,127.45,127.43,8.7071636]
[1764585892242,2.98381895,127.45,127.43,0.86]
[1764585893516,2.98381895,127.45,127.43,8.70732868]
[1764585896148,3.61381895,127.45,127.43,8.70732868]
[1764585896749,2.98381895,127.45,127.43,8.70732868]
[1764585897743,0.14216157,127.45,127.43,8.70732868]
[1764585900364,0.14216157,127.45,127.43,8.04732868]
[1764585900658,0.14216157,127.45,127.44,0.71]
[1764585901037,0.14216157,127.45,127.44,8.55682988]
[1764585903331,46.34216157,127.5,127.44,31.01556196]
[1764585903535,49.80216157,127.5,127.46,2.84165738]
[1764585903735,49.80216157,127.5,127.45,4.17]
[1764585903736,49.80216157,127.5,127.45,7.01165738]
[1764585903933,50.49216157,127.5,127.46,0.71]
[1764585904137,52.64381895,127.5,127.46,0.71]
[1764585904338,53.33381895,127.5,127.46,0.71]
[1764585905362,0.14216157,127.49,127.47,7.84498313]
[1764585906566,0.14216157,127.49,127.47,0.71]
[1764585908452,0.14216157,127.49,127.47,8.55496154]
[1764585915755,0.14216157,127.49,127.47,7.84496154]
[1764585916075,0.14216157,127.49,127.48,0.71]
[1764585916275,0.14216157,127.5,127.48,0.71]
[1764585916858,5.26968555,127.5,127.48,0.71]
[1764585917474,0.14216157,127.5,127.48,0.71]
[1764585918479,0.14216157,127.5,127.48,8.55419225]
[1764585921484,0.14216157,127.5,127.49,0.71]
[1764585923707,21.2327678,127.5,127.47,7.84479277]
[1764585923875,21.2327678,127.5,127.45,7.8462142]
[1764585923876,0.14216157,127.48,127.45,7.8462142]
[1764585924075,0.14216157,127.48,127.46,0.71]
[1764585924471,0.14216157,127.48,127.46,8.55535354]
[1764585925182,13.38963047,127.48,127.45,7.84597785]
[1764585925387,14.07963047,127.48,127.45,8.55597785]
[1764585925580,14.07963047,127.48,127.46,0.71]
[1764585925779,13.38963047,127.48,127.46,0.71]
[1764585925982,0.14216157,127.46,127.45,7.84597785]
[1764585926171,0.14216157,127.46,127.45,8.51597785]
[1764585927291,0.14216157,127.46,127.44,27.46296984]
[1764585927499,0.14216157,127.46,127.44,28.13296984]
[1764585928897,0.14216157,127.46,127.45,0.69]
[1764585929504,0.14216157,127.46,127.45,8.5362142]
[1764585930901,0.14216157,127.46,127.45,7.8462142]
[1764585933087,5.25968555,127.46,127.43,8.04719143]
[1764585933398,5.25968555,127.46,127.43,8.73719143]
[1764585933596,0.14216157,127.44,127.43,8.73719143]
[1764585933779,4.57968555,127.44,127.43,0.2]
[1764585933975,5.25968555,127.44,127.43,0.2]
[1764585934179,4.57968555,127.44,127.43,0.2]
[1764585934378,0.14216157,127.44,127.43,0.2]
[1764585935180,21.91646035,127.44,127.43,0.2]
[1764585936510,14.06963047,127.44,127.43,0.2]
[1764585936688,13.38963047,127.44,127.43,0.2]
[1764585937705,8.95210649,127.44,127.43,0.2]
[1764585938283,0.14216157,127.44,127.43,0.2]
[1764585940911,0.14216157,127.44,127.43,0.89]
[1764585942516,0.14216157,127.44,127.43,0.2]
[1764585942902,4.57968555,127.44,127.43,0.2]
[1764585944717,21.23646035,127.44,127.43,0.2]
[1764585944910,21.91646035,127.44,127.43,0.2]
[1764585946208,17.47893637,127.44,127.43,0.2]
[1764585946525,21.91646035,127.44,127.43,0.2]
[1764585949017,68.25862192,127.44,127.43,0.2]
[1764585949421,67.57862192,127.44,127.43,0.2]
[1764585949720,68.25862192,127.44,127.43,0.2]
[1764585954824,143.25862192,127.44,127.43,0.2]
[1764585961129,142.57862192,127.44,127.43,0.2]
[1764585961945,143.27862192,127.44,127.43,0.2]
[1764585962247,142.57862192,127.44,127.43,0.2]
[1764585963819,146.03862192,127.44,127.43,0.2]
[1764585964323,146.73862192,127.44,127.43,0.2]
[1764585964745,146.03862192,127.44,127.43,0.2]
[1764585966343,124.94432314,127.44,127.43,0.2]
[1764585966647,49.94432314,127.44,127.43,0.88]
[1764585967632,49.94432314,127.44,127.43,0.2]
[1764585968320,46.48432314,127.44,127.43,8.72744565]
[1764585968524,49.94432314,127.44,127.43,8.72744565]
[1764585969746,54.38184712,127.44,127.43,8.04744565]
[1764585970133,71.73862192,127.44,127.43,0.2]
[1764585970345,63.19179204,127.44,127.43,0.2]
[1764585970546,54.38184712,127.44,127.43,0.2]
[1764585970736,54.38184712,127.44,127.43,0.88]
[1764585971443,46.48432314,127.44,127.43,0.88]
[1764585971648,49.94432314,127.44,127.43,0.88]
[1764585972533,118.76861319,127.48,127.43,8.72744565]
[1764585972534,99.1570996,127.48,127.43,8.72744565]
[1764585972733,55.15210649,127.49,127.44,0.68]
[1764585972935,7.89752398,127.48,127.44,0.68]
[1764585973143,0.14216157,127.47,127.44,0.68]
[1764585974257,0.14216157,127.47,127.44,8.52634834]
[1764585974632,0.14216157,127.47,127.45,0.68]
[1764585976759,0.14216157,127.47,127.45,8.52613319]
[1764585977051,0.14216157,127.47,127.46,0.68]
[1764585980255,0.14216157,127.47,127.46,8.52559861]
[1764585980464,0.14216157,127.48,127.46,11.3667491]
[1764585980647,30.91927201,127.51,127.47,3.52115049]
[1764585980954,0.14216157,127.5,127.47,0.68]
[1764585981260,0.14216157,127.5,127.48,0.68]
[1764585981961,0.14216157,127.5,127.48,8.52417811]
[1764585982160,0.14216157,127.5,127.49,0.68]
[1764585982657,3.60216157,127.5,127.49,0.68]
[1764585984963,0.14216157,127.51,127.49,11.36490294]
[1764585985458,0.14216157,127.51,127.5,0.68]
[1764585991368,0.14216157,127.51,127.49,7.84375245]
[1764585991551,0.14216157,127.51,127.49,8.51375245]
[1764585991869,3.60216157,127.5,127.49,8.51375245]
[1764585995171,12.41210649,127.5,127.47,7.84466749]
[1764585995467,12.50325698,127.49,127.46,0.67]
[1764585995667,0.14216157,127.47,127.46,0.67]
[1764585995854,0.14216157,127.47,127.45,7.8462142]
[1764585996366,0.14216157,127.47,127.46,0.67]
[1764585998879,0.14216157,127.47,127.46,8.51559861]
[1764585999776,0.14216157,127.48,127.46,8.51559861]
[1764585999951,0.14216157,127.46,127.44,0.67]
[1764586000148,0.14216157,127.46,127.45,0.67]
[1764586002569,3.60216157,127.46,127.45,0.67]
[1764586003075,0.14216157,127.46,127.45,0.67]
[1764586008680,15.11109541,127.47,127.45,0.67]
[1764586009055,15.82109541,127.47,127.45,0.67]
[1764586009676,15.11109541,127.47,127.45,0.67]
[1764586010979,23.66609517,127.47,127.45,0.67]
[1764586011177,46.24216157,127.46,127.45,0.67]
[1764586011389,0.14216157,127.45,127.43,8.04740546]
[1764586012074,0.14216157,127.45,127.44,0.67]
[1764586012266,0.14216157,127.45,127.44,8.51682988]
[1764586021092,0.14216157,127.46,127.44,8.51682988]
[1764586021270,0.14216157,127.46,127.45,0.69]
[1764586025388,0.14216157,127.46,127.44,7.84682988]
[1764586025595,0.14216157,127.46,127.44,8.53682988]
[1764586030296,0.14216157,127.46,127.45,0.69]
[1764586031912,0.14216157,127.46,127.44,8.53682988]
[1764586033197,0.14216157,127.44,127.43,0.2]
[1764586033601,0.14216157,127.44,127.43,0.89]
[1764586035014,0.14216157,127.44,127.43,8.73744565]
[1764586040609,3.60216157,127.45,127.43,8.73744565]
[1764586041628,0.14216157,127.45,127.43,8.73744565]
[1764586044032,5.30340807,127.44,127.43,8.04744565]
[1764586044205,8.04340807,127.44,127.43,8.04744565]
[1764586045135,3.60216157,127.44,127.43,8.04744565]
[1764586046109,3.60216157,127.44,127.43,8.72744565]
[1764586047951,0.14216157,127.44,127.43,8.72744565]
[1764586048253,0.14216157,127.44,127.43,13.16869215]
[1764586048820,0.14216157,127.44,127.43,8.72744565]
[1764586052557,4.58340807,127.44,127.43,8.72744565]
[1764586054056,0.14216157,127.44,127.43,0.88]
[1764586054959,0.14216157,127.44,127.43,8.72744565]
[1764586055268,0.14216157,127.44,127.43,0.88]
[1764586057642,0.14216157,127.44,127.43,8.72744565]
[1764586063663,0.14216157,127.44,127.43,13.16869215]
[1764586064659,0.14216157,127.44,127.43,0.2]
[1764586065037,0.14216157,127.44,127.43,0.87]
[1764586065560,0.14216157,127.44,127.43,0.2]
[1764586065762,0.14216157,127.44,127.43,0.87]
[1764586066646,0.14216157,127.44,127.43,0.2]
[1764586066958,17.50893637,127.44,127.43,0.2]
[1764586067454,16.79893637,127.44,127.43,0.2]
[1764586069168,21.24018287,127.44,127.43,0.2]
[1764586069770,0.14216157,127.44,127.43,0.2]
[1764586071668,4.58340807,127.44,127.43,0.2]
[1764586075750,5.29340807,127.44,127.43,0.2]
[1764586080181,4.58340807,127.44,127.43,0.2]
[1764586082254,4.58340807,127.44,127.43,0.86]
[1764586083169,4.58340807,127.44,127.43,0.2]
[1764586083675,4.58340807,127.44,127.43,0.86]
[1764586084882,0.14216157,127.44,127.43,8.70744565]
[1764586085189,4.58340807,127.44,127.43,0.2]
[1764586085554,4.58340807,127.44,127.43,0.86]
[1764586089883,4.58340807,127.44,127.43,0.2]
[1764586090274,4.58340807,127.44,127.43,0.86]
[1764586090474,0.14216157,127.44,127.43,0.86]
[1764586091602,0.14216157,127.44,127.43,0.2]
[1764586091798,21.96018287,127.44,127.43,0.2]
[1764586092791,30.67002659,127.44,127.43,0.2]
[1764586098519,35.11127309,127.44,127.43,0.2]
[1764586100388,40.45377124,127.44,127.43,0.2]
[1764586101909,100.11880892,127.41,127.4,0.2]
[1764586102112,106.56596872,127.41,127.4,0.2]
[1764586102314,107.28596872,127.41,127.4,0.2]
[1764586103089,110.43346842,127.41,127.4,0.2]
[1764586103402,185.43346842,127.41,127.4,0.2]
[1764586103712,193.28214591,127.41,127.4,0.2]
[1764586112022,193.28214591,127.41,127.4,1e-08]
[1764586112243,193.28214591,127.41,127.39,0.2]
[1764586112244,8.95210649,127.4,127.39,0.2]
[1764586112540,12.49710472,127.4,127.39,0.2]
[1764586112928,15.6453476,127.4,127.39,0.2]
[1764586113443,23.49464116,127.4,127.39,0.2]
[1764586113624,34.87463408,127.4,127.39,1e-08]
[1764586113825,205.85210649,127.39,127.38,0.2]
[1764586114146,205.85210649,127.39,127.37,0.2]
[1764586114147,55.85210649,127.38,127.37,1e-08]
[1764586114335,23.87709764,127.38,127.37,1e-08]
[1764586114929,158.95210649,127.37,127.36,0.2]
[1764586115130,165.95710472,127.37,127.36,0.2]
[1764586115339,173.80824706,127.37,127.36,0.2]
[1764586115648,176.95723347,127.37,127.36,0.2]
[1764586115850,58.69710472,127.36,127.35,0.2]
[1764586116030,59.39710472,127.36,127.35,0.2]
[1764586116946,62.54633906,127.36,127.35,0.2]
[1764586117350,70.39809785,127.36,127.35,1e-08]
[1764586118640,73.85809785,127.36,127.35,1e-08]
[1764586121153,26.95809785,127.36,127.35,1e-08]
[1764586121337,23.49809785,127.36,127.35,1e-08]
[1764586121533,26.95809785,127.36,127.35,1e-08]
[1764586125359,22.79809785,127.36,127.35,0.72000001]
[1764586125555,26.25809785,127.36,127.35,0.72000001]
[1764586125738,26.11593628,127.36,127.35,0.72000001]
[1764586126634,26.25809785,127.36,127.35,0.72000001]
[1764586127546,26.25809785,127.36,127.35,1e-08]
[1764586127948,26.25809785,127.36,127.35,0.72000001]
[1764586131063,23.41309962,127.36,127.35,0.72000001]
[1764586131261,26.25809785,127.36,127.35,0.72000001]
[1764586132665,23.41309962,127.36,127.35,0.72000001]
[1764586132859,23.10886351,127.36,127.35,0.72000001]
[1764586134267,26.25760204,127.36,127.35,0.72000001]
[1764586135061,22.79760204,127.36,127.35,0.72000001]
[1764586135268,26.95760204,127.36,127.35,1e-08]
[1764586145079,26.25760204,127.36,127.35,1e-08]
[1764586147887,26.91760204,127.36,127.35,1e-08]
[1764586161998,158.95210649,127.35,127.34,0.1]
[1764586162189,161.79710472,127.35,127.34,0.1]
[1764586162390,163.40370368,127.35,127.34,0.1]
[1764586162592,166.55318598,127.35,127.34,0.1]
[1764586164207,169.95396413,127.35,127.34,0.82]
[1764586164510,177.86556132,127.35,127.34,0.82]
[1764586169110,177.86556132,127.35,127.34,0.1]
[1764586170716,177.86556132,127.35,127.34,0.8]
[1764586172017,177.86556132,127.35,127.34,0.1]
[1764586182820,190.71442532,127.35,127.34,0.1]
[1764586183013,194.17442532,127.35,127.34,0.1]
[1764586183528,177.86556132,127.35,127.34,0.1]
[1764586185928,173.41396413,127.35,127.34,0.1]
[1764586186131,177.86556132,127.35,127.34,0.1]
[1764586191537,178.58556132,127.35,127.34,0.1]
[1764586199824,177.86556132,127.35,127.34,0.1]
[1764586200367,178.55556132,127.35,127.34,0.1]
[1764586201429,178.55556132,127.35,127.32,0.2]
[1764586201430,158.80994492,127.33,127.32,0.2]
[1764586201628,180.040109,127.33,127.32,1e-08]
[1764586201829,15.58919306,127.32,127.31,0.2]
[1764586202141,25.18238744,127.32,127.31,0.2]
[1764586202336,25.18238744,127.32,127.31,1e-08]
[1764586202632,158.95210649,127.31,127.3,26.83627865]
[1764586202835,176.27851181,127.31,127.3,26.83627865]
[1764586203049,178.15308197,127.31,127.3,26.83627865]
[1764586203226,183.11704716,127.29,127.28,0.67]
[1764586203427,186.57704716,127.29,127.28,0.67]
[1764586203947,214.65906457,127.29,127.28,0.67]
[1764586206145,56.60530581,127.29,127.28,0.67]
[1764586206347,20.12555831,127.3,127.28,0.67]
[1764586206924,0.14216157,127.29,127.28,0.67]
[1764586217865,75.14216157,127.29,127.28,0.67]
[1764586218458,75.0,127.29,127.28,0.67]
[1764586219163,78.46,127.29,127.28,0.67]
[1764586221670,3.60216157,127.29,127.28,0.67]
[1764586222964,0.14216157,127.29,127.28,0.67]
[1764586231079,0.14216157,127.29,127.28,8.5266939]
[1764586241384,7.85708249,127.33,127.28,31.01734253]
[1764586241590,46.9,127.34,127.3,2.84891388]
[1764586241591,3.46,127.32,127.3,2.84891388]
[1764586241889,3.46,127.32,127.3,7.85498339]
[1764586242091,0.14216157,127.31,127.3,7.85498339]
[1764586242685,0.14216157,127.31,127.3,8.57498339]
[1764586248388,86.80102037,127.31,127.29,0.72]
[1764586250005,87.48102037,127.31,127.29,0.72]
[1764586250203,87.48102037,127.31,127.28,7.85627433]
[1764586250408,87.48102037,127.31,127.29,0.72]
[1764586250709,86.80102037,127.31,127.29,0.72]
[1764586251010,94.65590432,127.31,127.29,0.72]
[1764586254599,3.60216157,127.3,127.29,0.72]
[1764586266816,0.14216157,127.29,127.27,7.85731122]
[1764586267004,0.14216157,127.29,127.28,0.67]
[1764586268226,0.14216157,127.29,127.27,7.85731122]
[1764586268421,0.14216157,127.29,127.27,8.52731122]
[1764586268718,0.14216157,127.29,127.25,27.50449944]
[1764586268925,0.14216157,127.29,127.28,0.67]
[1764586273127,2.99107545,127.29,127.28,0.67]
[1764586273315,0.14216157,127.29,127.28,0.67]
[1764586274933,0.14216157,127.29,127.27,0.67]
[1764586277137,0.14216157,127.29,127.27,8.52697386]
[1764586277515,0.14216157,127.29,127.28,0.67]
[1764586278626,0.14216157,127.29,127.27,8.52697386]
[1764586278827,0.14216157,127.29,127.27,7.85697386]
[1764586279019,0.14216157,127.29,127.28,0.67]
[1764586280041,0.14216157,127.29,127.28,0.67]
[1764586281741,0.14216157,127.29,127.27,7.85697386]
[1764586281914,0.14216157,127.29,127.27,8.52697386]
[1764586283443,0.14216157,127.29,127.28,0.67]
[1764586285919,21.26042861,127.29,127.25,7.85854616]
[1764586286118,40.90496491,127.29,127.25,7.85854616]
[1764586286418,0.14216157,127.27,127.26,0.72]
[1764586289345,0.14216157,127.28,127.26,0.72]
[1764586289725,0.80216157,127.28,127.26,0.72]
[1764586290358,5.25419,127.28,127.26,0.72]
[1764586291753,4.59419,127.28,127.26,0.72]
[1764586292262,0.14216157,127.28,127.26,0.72]